[Event "*** Titled Tuesday Blitz"]
[Site "Chess.com"]
[Date "2020.11.03"]
[Round "5"]
[White "DonBroca"]
[Black "AniJak"]
[Result "1-0"]
[WhiteElo "2105"]
[BlackElo "2304"]
[TimeControl "180+1"]
[EndTime "10:58:52 PST"]
[Termination "DonBroca won by resignation"]

1. e4 {[%clk 0:02:57.6]} 1... c5 {[%clk 0:02:59.3]} 2. d4 {[%clk 0:02:53]} 2...
cxd4 {[%clk 0:02:58.5]} 3. c3 {[%clk 0:02:53.9]} 3... dxc3 {[%clk 0:02:57.6]} 4.
Nxc3 {[%clk 0:02:54.8]} 4... d6 {[%clk 0:02:56.5]} 5. Bc4 {[%clk 0:02:55.3]}
5... e6 {[%clk 0:02:53.2]} 6. Nf3 {[%clk 0:02:55.6]} 6... Be7 {[%clk 0:02:52.2]}
7. O-O {[%clk 0:02:56.1]} 7... Nf6 {[%clk 0:02:52.4]} 8. Qe2 {[%clk 0:02:56.7]}
8... a6 {[%clk 0:02:51.3]} 9. Rd1 {[%clk 0:02:55.7]} 9... Qc7 {[%clk 0:02:50.8]}
10. Bf4 {[%clk 0:02:48.7]} 10... e5 {[%clk 0:02:38.3]} 11. Be3 {[%clk
0:02:48.2]} 11... O-O {[%clk 0:02:30.3]} 12. Rac1 {[%clk 0:02:47.2]} 12... Qd8
{[%clk 0:02:09.7]} 13. Nxe5 {[%clk 0:02:44]} 13... b5 {[%clk 0:02:03.6]} 14. Bd5
{[%clk 0:02:08.8]} 14... Nxd5 {[%clk 0:02:03.2]} 15. Nxd5 {[%clk 0:02:08.9]}
15... dxe5 {[%clk 0:02:01.6]} 16. Bb6 {[%clk 0:02:05.4]} 16... Qd7 {[%clk
0:01:39.6]} 17. Rc7 {[%clk 0:02:00.2]} 17... Qg4 {[%clk 0:01:36]} 18. f3 {[%clk
0:01:53.7]} 18... Qe6 {[%clk 0:01:26.2]} 19. Rxe7 {[%clk 0:01:37.5]} 19... Qh6
{[%clk 0:01:14.6]} 20. Be3 {[%clk 0:01:30]} 20... Qh4 {[%clk 0:01:05.7]} 21. g3
{[%clk 0:01:13.5]} 21... Qh3 {[%clk 0:01:05.4]} 22. Nc7 {[%clk 0:01:12.3]} 22...
Nc6 {[%clk 0:01:00.3]} 23. Nxa8 {[%clk 0:01:06.9]} 23... Nxe7 {[%clk 0:01:00.2]}
24. Nb6 {[%clk 0:01:07.1]} 24... Be6 {[%clk 0:00:56.2]} 25. Nd7 {[%clk
0:00:56.4]} 25... Bxd7 {[%clk 0:00:54.4]} 26. Bc5 {[%clk 0:00:44.1]} 26... Qe6
{[%clk 0:00:48]} 27. Rd6 {[%clk 0:00:38.2]} 27... Qh3 {[%clk 0:00:44]} 28. Qd2
{[%clk 0:00:29.4]} 28... Be6 {[%clk 0:00:32.3]} 29. Rd8 {[%clk 0:00:29]} 29...
Bd7 {[%clk 0:00:12]} 30. Qxd7 {[%clk 0:00:22.8]} 30... Qxd7 {[%clk 0:00:09.6]}
31. Rxd7 {[%clk 0:00:23]} 31... Ng6 {[%clk 0:00:09.7]} 32. Bxf8 {[%clk
0:00:21.8]} 32... Nxf8 {[%clk 0:00:10.1]} 33. Ra7 {[%clk 0:00:20.9]} 33... h6
{[%clk 0:00:09.9]} 34. Rxa6 {[%clk 0:00:21.1]} 34... b4 {[%clk 0:00:10.3]} 35.
Rb6 {[%clk 0:00:21.1]} 35... Ne6 {[%clk 0:00:10.7]} 36. Rxe6 {[%clk 0:00:20.4]}
36... fxe6 {[%clk 0:00:10.4]} 37. a4 {[%clk 0:00:20.4]} 37... Kf7 {[%clk
0:00:11.3]} 38. Kf2 {[%clk 0:00:18]} 38... Ke7 {[%clk 0:00:12.2]} 39. Ke3 {[%clk
0:00:17.3]} 39... Kd7 {[%clk 0:00:13.1]} 40. Kd3 {[%clk 0:00:17.8]} 40... Kc6
{[%clk 0:00:14]} 41. Kc4 {[%clk 0:00:17.6]} 41... Kb6 {[%clk 0:00:13.8]} 42.
Kxb4 {[%clk 0:00:17.5]} 42... Ka6 {[%clk 0:00:14.7]} 43. Kc5 {[%clk 0:00:18.2]}
1-0

[Event "*** Titled Tuesday Blitz"]
[Site "Chess.com"]
[Date "2020.11.03"]
[Round "5"]
[White "HanSchut"]
[Black "annacramling"]
[Result "0-1"]
[WhiteElo "2187"]
[BlackElo "1978"]
[TimeControl "180+1"]
[EndTime "10:58:52 PST"]
[Termination "annacramling won on time"]

1. e4 {[%clk 0:03:00.9]} 1... c5 {[%clk 0:02:57.2]} 2. Nf3 {[%clk 0:03:00.9]}
2... Nc6 {[%clk 0:02:56.3]} 3. d4 {[%clk 0:03:01.2]} 3... cxd4 {[%clk
0:02:57.2]} 4. Nxd4 {[%clk 0:03:01.7]} 4... Nf6 {[%clk 0:02:57.5]} 5. Nc3 {[%clk
0:03:01.7]} 5... e6 {[%clk 0:02:57.9]} 6. Ndb5 {[%clk 0:03:01.5]} 6... d6 {[%clk
0:02:58]} 7. Bf4 {[%clk 0:03:01.3]} 7... e5 {[%clk 0:02:58.7]} 8. Bg5 {[%clk
0:03:01.9]} 8... a6 {[%clk 0:02:58.7]} 9. Na3 {[%clk 0:03:02.4]} 9... b5 {[%clk
0:02:57.9]} 10. Bxf6 {[%clk 0:03:02.8]} 10... gxf6 {[%clk 0:02:57.9]} 11. Nd5
{[%clk 0:03:03.3]} 11... f5 {[%clk 0:02:55.8]} 12. c3 {[%clk 0:03:03.8]} 12...
Bg7 {[%clk 0:02:49.2]} 13. exf5 {[%clk 0:03:03.5]} 13... Bxf5 {[%clk 0:02:48.9]}
14. Nc2 {[%clk 0:03:04.1]} 14... Be6 {[%clk 0:02:39.6]} 15. a4 {[%clk
0:02:53.3]} 15... Bxd5 {[%clk 0:02:06.1]} 16. Qxd5 {[%clk 0:02:52.1]} 16... Ne7
{[%clk 0:02:06.3]} 17. Qf3 {[%clk 0:02:43.4]} 17... bxa4 {[%clk 0:01:54.2]} 18.
Rxa4 {[%clk 0:02:40.7]} 18... O-O {[%clk 0:01:44.8]} 19. Bxa6 {[%clk 0:02:22.5]}
19... Qb6 {[%clk 0:01:10.7]} 20. Nb4 {[%clk 0:02:15.6]} 20... d5 {[%clk
0:01:06.3]} 21. O-O {[%clk 0:02:08.5]} 21... e4 {[%clk 0:01:05.8]} 22. Qd1
{[%clk 0:02:01.1]} 22... Rfd8 {[%clk 0:01:02.7]} 23. Be2 {[%clk 0:01:32.6]}
23... d4 {[%clk 0:00:48.6]} 24. Bc4 {[%clk 0:00:52.3]} 24... dxc3 {[%clk
0:00:43.8]} 25. bxc3 {[%clk 0:00:38.1]} 25... Rxd1 {[%clk 0:00:32.8]} 26. Rxa8+
{[%clk 0:00:37.3]} 26... Rd8 {[%clk 0:00:32.7]} 27. Ra6 {[%clk 0:00:19.7]} 27...
Qb7 {[%clk 0:00:26.1]} 28. Rfa1 {[%clk 0:00:07.3]} 28... Bxc3 {[%clk 0:00:22]}
29. R1a4 {[%clk 0:00:02.4]} 29... Bxb4 {[%clk 0:00:21]} 30. Ra7 {[%clk
0:00:02.6]} 30... Rd1+ {[%clk 0:00:12.5]} 31. Bf1 {[%clk 0:00:02.4]} 31... Qb5
{[%clk 0:00:11.2]} 32. h4 {[%clk 0:00:01.4]} 32... Qxf1+ {[%clk 0:00:10.8]} 33.
Kh2 {[%clk 0:00:02.3]} 33... Qh1+ {[%clk 0:00:04.1]} 34. Kg3 {[%clk 0:00:02.4]}
34... Bd6+ {[%clk 0:00:04.1]} 0-1

[Event "*** Titled Tuesday Blitz"]
[Site "Chess.com"]
[Date "2020.11.03"]
[Round "5"]
[White "QuintilianoR"]
[Black "CarlssonLudvig"]
[Result "1-0"]
[WhiteElo "2621"]
[BlackElo "2438"]
[TimeControl "180+1"]
[EndTime "10:58:55 PST"]
[Termination "QuintilianoR won on time"]

1. Nf3 {[%clk 0:03:00.9]} 1... c5 {[%clk 0:02:56.5]} 2. e4 {[%clk 0:03:00.1]}
2... d6 {[%clk 0:02:53.7]} 3. d4 {[%clk 0:02:58.7]} 3... cxd4 {[%clk 0:02:54.6]}
4. Nxd4 {[%clk 0:02:59.1]} 4... Nf6 {[%clk 0:02:54.9]} 5. Nc3 {[%clk 0:02:59.5]}
5... g6 {[%clk 0:02:52.8]} 6. Be3 {[%clk 0:02:59.2]} 6... Bg7 {[%clk 0:02:51.9]}
7. f3 {[%clk 0:02:59.2]} 7... Nc6 {[%clk 0:02:51.8]} 8. Qd2 {[%clk 0:02:59.3]}
8... O-O {[%clk 0:02:51.9]} 9. O-O-O {[%clk 0:02:59.5]} 9... Bd7 {[%clk
0:02:50.9]} 10. g4 {[%clk 0:02:55.9]} 10... Ne5 {[%clk 0:02:41.4]} 11. Be2
{[%clk 0:02:54.1]} 11... Rc8 {[%clk 0:02:35.1]} 12. Kb1 {[%clk 0:02:54.1]} 12...
Nc4 {[%clk 0:02:32.4]} 13. Bxc4 {[%clk 0:02:53.3]} 13... Rxc4 {[%clk 0:02:33.3]}
14. h4 {[%clk 0:02:52.8]} 14... h5 {[%clk 0:02:22.2]} 15. gxh5 {[%clk
0:02:49.4]} 15... Nxh5 {[%clk 0:02:22.1]} 16. Rhg1 {[%clk 0:02:43.1]} 16... e6
{[%clk 0:01:04.5]} 17. Nde2 {[%clk 0:02:11.4]} 17... Qxh4 {[%clk 0:00:46.4]} 18.
Qxd6 {[%clk 0:02:08.7]} 18... Bc6 {[%clk 0:00:31.4]} 19. Rh1 {[%clk 0:01:20.7]}
19... Qf6 {[%clk 0:00:30.5]} 20. Qd3 {[%clk 0:01:09.2]} 20... Bb5 {[%clk
0:00:24.3]} 21. Bd4 {[%clk 0:01:02.4]} 21... Rxd4 {[%clk 0:00:20.8]} 22. Qxd4
{[%clk 0:01:01.2]} 22... Qxf3 {[%clk 0:00:20.5]} 23. Qd2 {[%clk 0:00:44.3]}
23... Bxe2 {[%clk 0:00:16.9]} 24. Nxe2 {[%clk 0:00:45.2]} 24... Qxe4 {[%clk
0:00:14.7]} 25. Rdg1 {[%clk 0:00:44]} 25... Rc8 {[%clk 0:00:13.2]} 26. Nc1
{[%clk 0:00:33.6]} 26... Qe5 {[%clk 0:00:09]} 27. Nd3 {[%clk 0:00:32.6]} 27...
Qb5 {[%clk 0:00:08.2]} 28. Rg5 {[%clk 0:00:29.2]} 28... Qb6 {[%clk 0:00:07.4]}
29. Ne5 {[%clk 0:00:16.5]} 29... Rd8 {[%clk 0:00:05.9]} 30. Qe1 {[%clk
0:00:10.1]} 30... Qd4 {[%clk 0:00:03.8]} 31. c3 {[%clk 0:00:06]} 31... Qf4
{[%clk 0:00:03.6]} 32. Rgxh5 {[%clk 0:00:05.3]} 32... gxh5 {[%clk 0:00:03]} 33.
Rxh5 {[%clk 0:00:06.2]} 33... Qg4 {[%clk 0:00:01.2]} 34. Nxg4 {[%clk 0:00:05]}
1-0

[Event "*** Titled Tuesday Blitz"]
[Site "Chess.com"]
[Date "2020.11.03"]
[Round "5"]
[White "pedromartinez91"]
[Black "penguingm1"]
[Result "0-1"]
[WhiteElo "2590"]
[BlackElo "2817"]
[TimeControl "180+1"]
[EndTime "10:58:57 PST"]
[Termination "penguingm1 won by checkmate"]

1. b3 {[%clk 0:02:33.7]} 1... d5 {[%clk 0:02:58.7]} 2. Bb2 {[%clk 0:02:32.4]}
2... c5 {[%clk 0:02:59.4]} 3. e3 {[%clk 0:02:32.6]} 3... Nc6 {[%clk 0:03:00.1]}
4. Nf3 {[%clk 0:02:33]} 4... Nf6 {[%clk 0:03:00.8]} 5. Bb5 {[%clk 0:02:32.9]}
5... Qb6 {[%clk 0:03:01.4]} 6. a4 {[%clk 0:02:30.2]} 6... a6 {[%clk 0:03:01.1]}
7. Bxc6+ {[%clk 0:02:30.3]} 7... Qxc6 {[%clk 0:03:02]} 8. Ne5 {[%clk 0:02:27.5]}
8... Qc7 {[%clk 0:03:01.9]} 9. d3 {[%clk 0:02:24.8]} 9... g6 {[%clk 0:03:01.8]}
10. Nd2 {[%clk 0:02:15.8]} 10... Bg7 {[%clk 0:03:01.6]} 11. Nef3 {[%clk
0:02:05.4]} 11... O-O {[%clk 0:03:00.1]} 12. O-O {[%clk 0:02:05.1]} 12... b6
{[%clk 0:02:59.6]} 13. e4 {[%clk 0:01:59.6]} 13... Rd8 {[%clk 0:02:51.5]} 14.
exd5 {[%clk 0:01:50.1]} 14... Rxd5 {[%clk 0:02:48.7]} 15. Re1 {[%clk 0:01:49.8]}
15... Bb7 {[%clk 0:02:48.7]} 16. Qe2 {[%clk 0:01:47.6]} 16... e6 {[%clk
0:02:42.7]} 17. Be5 {[%clk 0:01:43.8]} 17... Qe7 {[%clk 0:02:33.4]} 18. Nc4
{[%clk 0:01:42.2]} 18... Nd7 {[%clk 0:02:25.5]} 19. Bxg7 {[%clk 0:01:29.8]}
19... Kxg7 {[%clk 0:02:24.8]} 20. Qd2 {[%clk 0:01:03.9]} 20... Rh5 {[%clk
0:02:19.5]} 21. Qc3+ {[%clk 0:00:54.3]} 21... Kg8 {[%clk 0:02:16.7]} 22. Nfe5
{[%clk 0:00:52.2]} 22... Qg5 {[%clk 0:01:08.8]} 23. f3 {[%clk 0:00:50.7]} 23...
Nf6 {[%clk 0:00:56.5]} 24. Qd2 {[%clk 0:00:41.6]} 24... Qh4 {[%clk 0:00:41.2]}
25. g3 {[%clk 0:00:36.1]} 25... Qd4+ {[%clk 0:00:41.1]} 26. Qe3 {[%clk
0:00:30.9]} 26... Qxe3+ {[%clk 0:00:19]} 27. Rxe3 {[%clk 0:00:31.8]} 27... Nd5
{[%clk 0:00:17.8]} 28. Ree1 {[%clk 0:00:30]} 28... Rd8 {[%clk 0:00:15.5]} 29. f4
{[%clk 0:00:23.9]} 29... f6 {[%clk 0:00:13.1]} 30. Ng4 {[%clk 0:00:15]} 30...
Kf7 {[%clk 0:00:12.8]} 31. Nge3 {[%clk 0:00:13.5]} 31... g5 {[%clk 0:00:07]} 32.
fxg5 {[%clk 0:00:10.4]} 32... Rxg5 {[%clk 0:00:06.9]} 33. Nxd5 {[%clk
0:00:10.7]} 33... exd5 {[%clk 0:00:07.2]} 34. Nxb6 {[%clk 0:00:10.8]} 34... a5
{[%clk 0:00:07.5]} 35. c4 {[%clk 0:00:06.9]} 35... dxc4 {[%clk 0:00:07.8]} 36.
dxc4 {[%clk 0:00:06.9]} 36... Rd2 {[%clk 0:00:08]} 37. Rad1 {[%clk 0:00:06.5]}
37... Rg2+ {[%clk 0:00:07.9]} 38. Kf1 {[%clk 0:00:06.5]} 38... Rf5# {[%clk
0:00:08]} 0-1

[Event "*** Titled Tuesday Blitz"]
[Site "Chess.com"]
[Date "2020.11.03"]
[Round "5"]
[White "DraG0s3L"]
[Black "BlixLT"]
[Result "1-0"]
[WhiteElo "2595"]
[BlackElo "2392"]
[TimeControl "180+1"]
[EndTime "10:58:57 PST"]
[Termination "DraG0s3L won by resignation"]

1. Nf3 {[%clk 0:03:00.9]} 1... d5 {[%clk 0:02:58.8]} 2. c4 {[%clk 0:02:58]} 2...
Nc6 {[%clk 0:02:49.1]} 3. cxd5 {[%clk 0:02:55]} 3... Qxd5 {[%clk 0:02:48.7]} 4.
Nc3 {[%clk 0:02:55.9]} 4... Qh5 {[%clk 0:02:48.2]} 5. g3 {[%clk 0:02:56.2]} 5...
e5 {[%clk 0:02:43.1]} 6. Bg2 {[%clk 0:02:54.6]} 6... Bh3 {[%clk 0:02:37.8]} 7.
O-O {[%clk 0:02:54.6]} 7... Nf6 {[%clk 0:02:31.2]} 8. Qa4 {[%clk 0:02:48.5]}
8... Ng4 {[%clk 0:02:12.7]} 9. b4 {[%clk 0:02:22.7]} 9... Bxb4 {[%clk
0:02:03.6]} 10. Ba3 {[%clk 0:02:20.7]} 10... Bxa3 {[%clk 0:01:33.5]} 11. Qxa3
{[%clk 0:02:21.6]} 11... O-O-O {[%clk 0:01:33.5]} 12. Rab1 {[%clk 0:02:17.3]}
12... Nd4 {[%clk 0:01:26.1]} 13. Qxa7 {[%clk 0:01:58.6]} 13... Bxg2 {[%clk
0:01:08.6]} 14. Qxb7+ {[%clk 0:01:32.3]} 14... Kd7 {[%clk 0:01:08.7]} 15. Kxg2
{[%clk 0:01:18.5]} 15... Nxf3 {[%clk 0:01:03.2]} 16. h3 {[%clk 0:01:16.2]} 16...
Ng5 {[%clk 0:00:30.7]} 17. hxg4 {[%clk 0:01:13.1]} 17... Qh3+ {[%clk 0:00:28.6]}
18. Kg1 {[%clk 0:01:13.2]} 18... f6 {[%clk 0:00:18.3]} 19. Ne4 {[%clk
0:00:51.4]} 19... Nxe4 {[%clk 0:00:17.5]} 20. Qxe4 {[%clk 0:00:51]} 20... h5
{[%clk 0:00:18]} 21. Rb7 {[%clk 0:00:42]} 21... hxg4 {[%clk 0:00:16.8]} 22. Rfb1
{[%clk 0:00:15.8]} 22... Qh2+ {[%clk 0:00:15.3]} 23. Kf1 {[%clk 0:00:16.4]}
23... Qh1+ {[%clk 0:00:15.7]} 24. Qxh1 {[%clk 0:00:16.5]} 24... Rxh1+ {[%clk
0:00:16.5]} 25. Kg2 {[%clk 0:00:17.4]} 25... Rxb1 {[%clk 0:00:15.8]} 26. Rxb1
{[%clk 0:00:18.3]} 26... Kc6 {[%clk 0:00:16.2]} 27. d3 {[%clk 0:00:18.5]} 27...
Ra8 {[%clk 0:00:15.8]} 28. Rb2 {[%clk 0:00:19.2]} 28... f5 {[%clk 0:00:15.5]}
29. f3 {[%clk 0:00:19.4]} 29... gxf3+ {[%clk 0:00:15.3]} 30. Kxf3 {[%clk
0:00:20.2]} 30... Ra3 {[%clk 0:00:15.4]} 31. Rc2+ {[%clk 0:00:20.1]} 31... Kd6
{[%clk 0:00:15.4]} 32. g4 {[%clk 0:00:20.6]} 32... g6 {[%clk 0:00:15.1]} 33.
gxf5 {[%clk 0:00:20.4]} 33... gxf5 {[%clk 0:00:16]} 34. Ke3 {[%clk 0:00:21.3]}
34... Kd5 {[%clk 0:00:16.2]} 35. Rxc7 {[%clk 0:00:21.1]} 35... Rxa2 {[%clk
0:00:15.9]} 36. Rb7 {[%clk 0:00:21.2]} 36... f4+ {[%clk 0:00:15.9]} 37. Kf3
{[%clk 0:00:21.1]} 37... Ra1 {[%clk 0:00:16.2]} 38. Rb5+ {[%clk 0:00:20.9]}
38... Ke6 {[%clk 0:00:16.4]} 39. Ke4 {[%clk 0:00:20.9]} 39... Re1 {[%clk
0:00:13.6]} 40. Rxe5+ {[%clk 0:00:19.4]} 40... Kd6 {[%clk 0:00:14.1]} 41. Kxf4
{[%clk 0:00:18.4]} 41... Rf1+ {[%clk 0:00:14]} 42. Ke4 {[%clk 0:00:18.9]} 42...
Re1 {[%clk 0:00:14.2]} 43. Kd4 {[%clk 0:00:19.4]} 43... Ra1 {[%clk 0:00:12.7]}
44. Rh5 {[%clk 0:00:19.3]} 44... Ra4+ {[%clk 0:00:11.4]} 45. Ke3 {[%clk
0:00:19.9]} 1-0

[Event "*** Titled Tuesday Blitz"]
[Site "Chess.com"]
[Date "2020.11.03"]
[Round "5"]
[White "OldweakGM"]
[Black "mishanick"]
[Result "1-0"]
[WhiteElo "2917"]
[BlackElo "3016"]
[TimeControl "180+1"]
[EndTime "10:58:59 PST"]
[Termination "OldweakGM won by resignation"]

1. Nf3 {[%clk 0:03:00.9]} 1... d5 {[%clk 0:02:50.2]} 2. d4 {[%clk 0:03:00.9]}
2... Nf6 {[%clk 0:02:50.3]} 3. Bf4 {[%clk 0:03:01]} 3... c5 {[%clk 0:02:50.4]}
4. e3 {[%clk 0:03:01.5]} 4... Nc6 {[%clk 0:02:50.4]} 5. Nbd2 {[%clk 0:02:59.6]}
5... Qb6 {[%clk 0:02:51]} 6. Rb1 {[%clk 0:02:48.9]} 6... Bf5 {[%clk 0:02:49.6]}
7. dxc5 {[%clk 0:02:47.6]} 7... Qxc5 {[%clk 0:02:49.5]} 8. Bd3 {[%clk
0:02:47.4]} 8... Bxd3 {[%clk 0:02:48.4]} 9. cxd3 {[%clk 0:02:47.9]} 9... e6
{[%clk 0:02:49]} 10. O-O {[%clk 0:02:44.8]} 10... Be7 {[%clk 0:02:49.6]} 11. Qb3
{[%clk 0:02:41.6]} 11... Qb4 {[%clk 0:02:47]} 12. Rfc1 {[%clk 0:02:37.3]} 12...
Kd7 {[%clk 0:02:29.7]} 13. Qd1 {[%clk 0:02:25]} 13... Rhc8 {[%clk 0:02:28.9]}
14. a3 {[%clk 0:02:23.9]} 14... Qb5 {[%clk 0:02:28.7]} 15. Nb3 {[%clk 0:02:20]}
15... Ke8 {[%clk 0:02:27.6]} 16. h3 {[%clk 0:02:12.8]} 16... h6 {[%clk
0:02:27.1]} 17. Rc3 {[%clk 0:02:10.8]} 17... Na5 {[%clk 0:02:07.2]} 18. Nbd4
{[%clk 0:01:50.7]} 18... Qb6 {[%clk 0:02:01]} 19. Rbc1 {[%clk 0:01:40.5]} 19...
Rxc3 {[%clk 0:02:00.2]} 20. Rxc3 {[%clk 0:01:40.5]} 20... Nc6 {[%clk 0:02:00.7]}
21. Nxc6 {[%clk 0:01:39.5]} 21... bxc6 {[%clk 0:02:01.4]} 22. Qa4 {[%clk
0:01:38.7]} 22... Rc8 {[%clk 0:01:51.9]} 23. Nd4 {[%clk 0:01:20.1]} 23... Bc5
{[%clk 0:01:13.3]} 24. Nb3 {[%clk 0:01:20.2]} 24... Be7 {[%clk 0:01:02.9]} 25.
Nd4 {[%clk 0:01:20]} 25... Bc5 {[%clk 0:01:02.5]} 26. Nb3 {[%clk 0:01:20.3]}
26... Be7 {[%clk 0:00:35.2]} 27. Na5 {[%clk 0:01:20.4]} 27... Kd7 {[%clk
0:00:27.4]} 28. b4 {[%clk 0:01:04]} 28... Qb5 {[%clk 0:00:26.7]} 29. Qc2 {[%clk
0:01:02.9]} 29... Ne8 {[%clk 0:00:22.2]} 30. Nb3 {[%clk 0:01:02]} 30... f6
{[%clk 0:00:20.2]} 31. Nd4 {[%clk 0:01:01.3]} 31... Qb6 {[%clk 0:00:20.7]} 32.
Bg3 {[%clk 0:01:00.1]} 32... e5 {[%clk 0:00:21.2]} 33. Nb3 {[%clk 0:00:58.8]}
33... Nd6 {[%clk 0:00:21]} 34. d4 {[%clk 0:00:53]} 34... e4 {[%clk 0:00:20.7]}
35. Qe2 {[%clk 0:00:49.2]} 35... f5 {[%clk 0:00:20.1]} 36. Nc5+ {[%clk
0:00:47.2]} 36... Kd8 {[%clk 0:00:18.5]} 37. Qh5 {[%clk 0:00:46.1]} 37... Nb5
{[%clk 0:00:18.9]} 38. Ne6+ {[%clk 0:00:32.2]} 38... Kd7 {[%clk 0:00:18.8]} 39.
Qxf5 {[%clk 0:00:32.5]} 39... Nxc3 {[%clk 0:00:17.9]} 40. Nc5+ {[%clk
0:00:25.8]} 40... Ke8 {[%clk 0:00:16.6]} 41. Qxc8+ {[%clk 0:00:25.5]} 41... Kf7
{[%clk 0:00:17.1]} 42. Qe6+ {[%clk 0:00:25.4]} 42... Ke8 {[%clk 0:00:16.7]} 43.
Qg6+ {[%clk 0:00:23.5]} 43... Kd8 {[%clk 0:00:16.1]} 44. Qxg7 {[%clk 0:00:22.7]}
44... Bxc5 {[%clk 0:00:16.4]} 45. dxc5 {[%clk 0:00:22.1]} 45... Ne2+ {[%clk
0:00:13.2]} 46. Kh2 {[%clk 0:00:22.5]} 46... Qa6 {[%clk 0:00:13.9]} 47. Qc7+
{[%clk 0:00:21.8]} 47... Ke8 {[%clk 0:00:14.1]} 48. Bd6 {[%clk 0:00:21.8]} 1-0

[Event "*** Titled Tuesday Blitz"]
[Site "Chess.com"]
[Date "2020.11.03"]
[Round "5"]
[White "Sibelephant"]
[Black "dretch"]
[Result "1-0"]
[WhiteElo "3089"]
[BlackElo "2821"]
[TimeControl "180+1"]
[EndTime "10:58:59 PST"]
[Termination "Sibelephant won on time"]

1. c4 {[%clk 0:03:00.2]} 1... c6 {[%clk 0:02:57.8]} 2. Nf3 {[%clk 0:02:58.2]}
2... d5 {[%clk 0:02:58]} 3. e3 {[%clk 0:02:58.8]} 3... Bf5 {[%clk 0:02:55.4]} 4.
Qb3 {[%clk 0:02:54.8]} 4... Qc7 {[%clk 0:02:53.7]} 5. Nc3 {[%clk 0:02:52.8]}
5... e6 {[%clk 0:02:53.5]} 6. Nh4 {[%clk 0:02:51.8]} 6... Be4 {[%clk 0:02:40.2]}
7. d3 {[%clk 0:02:35.2]} 7... dxc4 {[%clk 0:02:36.4]} 8. Qxc4 {[%clk 0:02:31.2]}
8... Bd5 {[%clk 0:02:35]} 9. Qa4 {[%clk 0:02:28.6]} 9... b5 {[%clk 0:02:32.5]}
10. Qc2 {[%clk 0:02:27.5]} 10... Qd8 {[%clk 0:02:10.4]} 11. Nxd5 {[%clk
0:02:25.4]} 11... cxd5 {[%clk 0:02:05.1]} 12. Nf3 {[%clk 0:02:23.4]} 12... Bb4+
{[%clk 0:02:04.5]} 13. Bd2 {[%clk 0:02:12.7]} 13... Bxd2+ {[%clk 0:02:04.5]} 14.
Qxd2 {[%clk 0:02:12]} 14... Ne7 {[%clk 0:02:02.5]} 15. d4 {[%clk 0:02:08.1]}
15... a6 {[%clk 0:02:00.7]} 16. Be2 {[%clk 0:01:58.6]} 16... Nbc6 {[%clk
0:01:57.8]} 17. O-O {[%clk 0:01:58.6]} 17... Qa5 {[%clk 0:01:54.5]} 18. Qxa5
{[%clk 0:01:51.5]} 18... Nxa5 {[%clk 0:01:54.2]} 19. Rfc1 {[%clk 0:01:52.2]}
19... f6 {[%clk 0:01:23.4]} 20. Ne1 {[%clk 0:01:51.9]} 20... Kf7 {[%clk
0:01:15.1]} 21. Nd3 {[%clk 0:01:49.6]} 21... Rhc8 {[%clk 0:01:14.3]} 22. Bg4
{[%clk 0:01:30.6]} 22... Nc4 {[%clk 0:01:07.4]} 23. b3 {[%clk 0:01:18.2]} 23...
Nd6 {[%clk 0:01:01.3]} 24. Kf1 {[%clk 0:01:10.2]} 24... Ne4 {[%clk 0:00:55.5]}
25. Ke1 {[%clk 0:01:08.1]} 25... g6 {[%clk 0:00:37.3]} 26. Bf3 {[%clk
0:00:56.2]} 26... Ng5 {[%clk 0:00:22.4]} 27. Be2 {[%clk 0:00:53.8]} 27... Ne4
{[%clk 0:00:22.6]} 28. f3 {[%clk 0:00:51.4]} 28... Nc3 {[%clk 0:00:20.7]} 29.
Bf1 {[%clk 0:00:51.5]} 29... a5 {[%clk 0:00:20.8]} 30. Kd2 {[%clk 0:00:48.7]}
30... b4 {[%clk 0:00:20.7]} 31. a3 {[%clk 0:00:48.8]} 31... Nf5 {[%clk
0:00:06.1]} 32. axb4 {[%clk 0:00:46.3]} 32... axb4 {[%clk 0:00:06.3]} 33. Rxa8
{[%clk 0:00:45]} 33... Rxa8 {[%clk 0:00:07.2]} 34. Nxb4 {[%clk 0:00:45.5]} 34...
Na2 {[%clk 0:00:07.1]} 35. Ra1 {[%clk 0:00:45.6]} 35... Nxb4 {[%clk 0:00:02.2]}
36. Rxa8 {[%clk 0:00:45]} 36... e5 {[%clk 0:00:02.6]} 37. Ra7+ {[%clk
0:00:43.2]} 37... Ke6 {[%clk 0:00:02.9]} 38. dxe5 {[%clk 0:00:43]} 38... fxe5
{[%clk 0:00:03]} 39. Rxh7 {[%clk 0:00:43.5]} 39... d4 {[%clk 0:00:02.5]} 40.
Bc4+ {[%clk 0:00:43.5]} 40... Kf6 {[%clk 0:00:02.5]} 41. exd4 {[%clk 0:00:40.3]}
41... exd4 {[%clk 0:00:02.6]} 42. Rb7 {[%clk 0:00:36.3]} 42... Na2 {[%clk
0:00:02.8]} 43. f4 {[%clk 0:00:31.9]} 43... Ne3 {[%clk 0:00:02.5]} 44. Kd3
{[%clk 0:00:30.4]} 44... Kf5 {[%clk 0:00:01.6]} 45. Rf7+ {[%clk 0:00:29.4]}
45... Kg4 {[%clk 0:00:01.6]} 46. Be6+ {[%clk 0:00:25.8]} 1-0